bitfinex/quotes_SOLUSD_20250731
["timestamp","ask_amount","ask_price","bid_price","bid_amount"]
[1753968788165,49.26601786,177.37,177.36,0.06]
[1753968788366,35.34731518,177.37,177.36,0.06]
[1753968788677,61.92828567,177.37,177.36,0.06]
[1753968788858,110.98818974,177.37,177.36,0.06]
[1753968789384,80.14318123,177.37,177.28,6.2452]
[1753968789560,9.79628652,177.32,177.28,6.2452]
[1753968789966,9.79628652,177.31,177.26,1.5566]
[1753968790167,9.79628652,177.32,177.27,9.79628652]
[1753968790379,5.63952176,177.32,177.27,9.79628652]
[1753968790559,41.43555921,177.33,177.28,9.79628652]
[1753968790753,35.79628652,177.33,177.28,9.79628652]
[1753968791064,147.3,177.36,177.32,9.79628652]
[1753968791266,3.70814013,177.35,177.33,9.79628652]
[1753968792084,3.70814013,177.35,177.32,9.79628652]
[1753968792258,9.79628652,177.33,177.29,9.79628652]
[1753968792458,5.63867566,177.35,177.29,9.79628652]
[1753968792658,9.79628652,177.34,177.29,9.79628652]
[1753968792959,9.79628652,177.33,177.28,9.79628652]
[1753968793361,26.0,177.34,177.28,9.79628652]
[1753968793561,9.79628652,177.33,177.28,9.79628652]
[1753968793772,5.63952176,177.32,177.28,9.79628652]
[1753968794090,15.43559657,177.33,177.28,9.79628652]
[1753968794297,15.43559657,177.33,177.29,9.79628652]
[1753968794582,15.43559657,177.33,177.28,9.79628652]
[1753968794756,15.43559657,177.33,177.26,1.5566]
[1753968794955,9.79628652,177.32,177.28,9.79628652]
[1753968795152,15.43559657,177.33,177.28,9.79628652]
[1753968795389,36.18771794,177.35,177.26,7.1979675]
[1753968795583,3.70663463,177.34,177.31,9.79628652]
[1753968795765,3.70663463,177.34,177.3,9.79628652]
[1753968795962,9.34559607,177.34,177.31,9.79628652]
[1753968796566,9.34559607,177.34,177.26,7.1979675]
[1753968796775,9.34559607,177.34,177.31,9.79628652]
[1753968796972,3.70663463,177.34,177.32,9.79628652]
[1753968797361,26.0,177.35,177.33,9.79628652]
[1753968797690,26.0,177.37,177.34,9.79628652]
[1753968797861,26.0,177.37,177.27,16.78468397]
[1753968797862,9.343946,177.36,177.28,5.64079422]
[1753968798379,19.14023252,177.36,177.31,9.79628652]
[1753968798571,3.70542735,177.35,177.32,9.79628652]
[1753968798774,26.0,177.39,177.34,9.79628652]
[1753968798969,3.70606455,177.38,177.35,9.79628652]
[1753968799173,9.79628652,177.4,177.37,9.79628652]
[1753968799174,3.70606455,177.39,177.37,9.79628652]
[1753968799597,3.70606455,177.39,177.38,9.79628652]
[1753968799761,0.03,177.42,177.38,9.79628652]
[1753968799762,3.73606455,177.42,177.38,9.79628652]
[1753968799956,0.03,177.42,177.41,9.79628652]
[1753968800585,0.03,177.42,177.37,5.63784812]
[1753968800892,3.73606455,177.42,177.4,9.79628652]
[1753968801089,3.73606455,177.42,177.33,27.5676]
[1753968801292,3.70606455,177.41,177.34,5.63888575]
[1753968801614,9.79628652,177.39,177.33,7.20680032]
[1753968801783,3.70743396,177.38,177.34,9.79628652]
[1753968802169,3.70743396,177.38,177.35,9.79628652]
[1753968802370,3.70743396,177.38,177.33,1.5676]
[1753968802567,3.70743396,177.38,177.35,9.79628652]
[1753968803191,9.34483324,177.39,177.35,9.79628652]
[1753968803396,3.70743396,177.39,177.35,9.79628652]
[1753968803602,3.70743396,177.39,177.37,9.79628652]
[1753968803890,31.66635576,177.42,177.38,9.79628652]
[1753968804097,3.70663405,177.41,177.39,9.79628652]
[1753968805435,0.03,177.42,177.4,9.79628652]
[1753968805711,0.03,177.42,177.41,9.79628652]
[1753968806023,45.17067988,177.42,177.34,5.63888575]
[1753968806208,9.79628652,177.4,177.34,5.63888575]
[1753968806401,3.70797206,177.39,177.36,9.79628652]
[1753968806718,9.79628652,177.41,177.36,9.79628652]
[1753968806719,3.70797206,177.4,177.36,9.79628652]
[1753968806918,3.73797206,177.39,177.36,9.79628652]
[1753968807118,0.03,177.39,177.36,9.79628652]
[1753968807323,3.73797206,177.39,177.37,9.79628652]
[1753968807630,0.03,177.39,177.38,9.79628652]
[1753968807802,3.73797206,177.39,177.37,9.79628652]
[1753968808004,0.03,177.39,177.37,9.79628652]
[1753968808518,0.03,177.39,177.38,9.79628652]
[1753968808702,0.03,177.39,177.37,9.79628652]
[1753968809024,13.50425858,177.38,177.33,1.5676]
[1753968809321,5.66733813,177.39,177.33,1.5676]
[1753968809322,3.70797206,177.37,177.35,9.79628652]
[1753968809513,3.70797206,177.38,177.36,9.79628652]
[1753968809699,3.70797206,177.37,177.35,9.79628652]
[1753968809897,3.70797206,177.38,177.35,9.79628652]
[1753968810116,3.73797206,177.39,177.37,9.79628652]
[1753968810319,3.70797206,177.38,177.37,9.79628652]
[1753968810706,13.50425858,177.38,177.33,1.5676]
[1753968810910,0.03,177.39,177.34,9.79628652]
[1753968810911,3.71040479,177.37,177.34,9.79628652]
[1753968811221,3.71040479,177.38,177.36,9.79628652]
[1753968811432,3.71040479,177.38,177.35,9.79628652]
[1753968811904,3.71040479,177.38,177.36,9.79628652]
[1753968812507,3.71040479,177.37,177.35,9.79628652]
[1753968812709,3.71040479,177.37,177.36,9.79628652]
[1753968812925,0.03,177.39,177.37,5.637932]
[1753968813110,0.03,177.39,177.38,9.79628652]
[1753968813312,0.03,177.39,177.38,10.36004793]
[1753968813619,0.03,177.39,177.38,51.14004793]
[1753968813827,0.03,177.39,177.38,50.57628652]
[1753968814526,0.03,177.39,177.38,9.79628652]
[1753968814842,0.03,177.39,177.36,9.79628652]
[1753968815228,3.74130636,177.39,177.34,46.41888204]
[1753968815414,3.74130636,177.39,177.36,9.79628652]
[1753968816226,3.74130636,177.39,177.34,46.41888204]
[1753968816422,3.71130636,177.38,177.34,50.57628652]
[1753968816617,3.71130636,177.38,177.35,9.79628652]
[1753968816825,13.50759288,177.38,177.34,40.78]
[1753968817000,3.71130636,177.37,177.34,40.78]
[1753968817724,13.50759288,177.37,177.34,40.78]
[1753968818020,3.71116892,177.36,177.34,40.78]
[1753968818333,5.637932,177.37,177.34,40.78]
[1753968818511,3.71116892,177.36,177.34,40.78]
[1753968818927,3.71116892,177.35,177.34,40.78]
[1753968819120,3.71116892,177.35,177.31,9.79628652]
[1753968819429,35.79628652,177.36,177.3,40.74]
[1753968819430,3.71116892,177.34,177.3,40.74]
[1753968819614,3.71116892,177.35,177.3,40.74]
[1753968819819,3.71116892,177.34,177.3,40.74]
[1753968820023,3.71116892,177.35,177.33,9.79628652]
[1753968820209,0.03,177.39,177.34,9.79628652]
[1753968820210,3.71071528,177.37,177.34,9.79628652]
[1753968820519,5.66735003,177.39,177.36,9.79628652]
[1753968820719,3.71094822,177.38,177.37,9.79628652]
[1753968823138,3.71094822,177.38,177.34,40.72]
[1753968823309,3.71094822,177.37,177.34,50.51628652]
[1753968823640,3.71094822,177.36,177.35,9.79628652]
[1753968823818,3.71094822,177.36,177.34,50.51628652]
[1753968824160,3.71094822,177.35,177.34,40.72]
[1753968825230,3.71094822,177.35,177.32,9.79628652]
[1753968825418,3.71094822,177.34,177.32,9.79628652]
[1753968825622,3.71094822,177.33,177.32,9.79628652]
[1753968826242,31.66751274,177.39,177.31,0.56398398]
[1753968826411,3.71252976,177.38,177.3,46.3399086]
[1753968826611,3.71252976,177.37,177.3,60.44030341]
[1753968826933,9.82628652,177.39,177.3,5.6399086]
[1753968827238,9.82628652,177.39,177.31,40.76]
[1753968827239,3.71275731,177.38,177.31,40.76]
[1753968827408,3.74275731,177.39,177.37,9.79628652]
[1753968827614,3.74275731,177.39,177.35,40.76]
[1753968827832,5.66732129,177.39,177.35,40.76]
[1753968828036,3.71292303,177.38,177.35,40.76]
[1753968828530,3.71292303,177.38,177.36,9.79628652]
[1753968828723,3.71292303,177.38,177.37,9.79628652]
[1753968828932,3.71292303,177.38,177.36,9.79628652]
[1753968829256,3.74292303,177.39,177.35,46.39847651]
[1753968829457,3.74292303,177.39,177.38,9.79628652]
[1753968829458,0.03,177.39,177.38,9.79628652]
[1753968829834,0.03,177.39,177.38,10.36004793]
[1753968830141,0.03,177.39,177.38,15.99766209]
[1753968830344,1e-08,177.42,177.41,16.78468397]
[1753968830543,0.03,177.44,177.43,42.78468397]
[1753968830760,0.03,177.46,177.44,16.78468397]
[1753968830920,0.03,177.5,177.48,26.0]
[1753968831118,0.03,177.51,177.48,77.19973028]
[1753968831334,0.03,177.51,177.5,26.58097049]
[1753968831523,0.03,177.51,177.5,10.3596668]
[1753968831941,0.03,177.51,177.49,5.63412023]
[1753968832132,0.03,177.51,177.5,9.79628652]
[1753968832525,0.03,177.51,177.49,5.63412023]
[1753968832831,0.03,177.51,177.48,9.79628652]
[1753968833147,0.03,177.51,177.5,9.79628652]
[1753968833520,0.03,177.51,177.49,9.79628652]
[1753968834152,0.03,177.51,177.5,9.79628652]
[1753968834852,0.03,177.51,177.5,50.63628652]
[1753968836361,0.03,177.51,177.5,56.27008933]
[1753968838830,0.03,177.51,177.48,0.56344376]
[1753968839026,0.03,177.51,177.5,9.79628652]
[1753968840330,0.03,177.51,177.5,15.43008933]
[1753968841528,0.03,177.53,177.51,37.98645701]
[1753968841729,0.1,177.55,177.51,78.80645701]
[1753968842032,0.03,177.57,177.56,11.73399907]
[1753968842229,0.03,177.57,177.56,56.24818559]
[1753968843758,0.1,177.6,177.58,33.694]
[1753968844065,0.1,177.62,177.6,5.63063063]
[1753968844273,0.1,177.62,177.58,7.694]
[1753968844463,0.1,177.62,177.6,50.63628652]
[1753968844664,15.52644039,177.62,177.59,40.84]
[1753968844858,15.52644039,177.62,177.54,40.86]
[1753968844859,9.79628652,177.6,177.54,40.86]
[1753968845168,9.79628652,177.59,177.54,50.65628652]
[1753968845481,9.79628652,177.57,177.52,9.79628652]
[1753968845685,9.79628652,177.57,177.51,40.86]
[1753968845872,9.79628652,177.55,177.51,40.86]
[1753968846067,15.42842809,177.56,177.51,50.65628652]
[1753968846773,15.42842809,177.56,177.51,40.86]
[1753968846969,13.80788982,177.53,177.49,40.88]
[1753968847485,13.80788982,177.5,177.45,54.66788982]
[1753968847780,13.80788982,177.48,177.42,5.63603835]
[1753968847983,13.80788982,177.46,177.41,54.70788982]
[1753968848664,13.80788982,177.47,177.42,13.80788982]
[1753968848864,13.80788982,177.47,177.45,13.80788982]
[1753968848865,26.0,177.47,177.45,13.80788982]
[1753968849057,26.0,177.47,177.44,13.80788982]
[1753968849251,26.0,177.47,177.41,46.53648481]
[1753968849252,5.63401461,177.5,177.45,13.80788982]
[1753968849453,13.80788982,177.52,177.47,13.80788982]
[1753968849648,39.80788982,177.52,177.48,13.80788982]
[1753968849853,26.0,177.52,177.49,13.80788982]
[1753968850052,26.0,177.52,177.48,13.80788982]
[1753968850269,46.51270656,177.54,177.5,13.80788982]
[1753968850577,46.51270656,177.54,177.47,40.9]
[1753968850578,66.88,177.54,177.47,40.9]
[1753968850762,14.07699007,177.6,177.53,13.80788982]
[1753968850958,13.80788982,177.61,177.56,13.80788982]
[1753968851177,16.78468397,177.6,177.56,13.80788982]
[1753968851385,26.0,177.59,177.56,13.80788982]
[1753968851675,16.78468397,177.6,177.51,40.9]
[1753968851848,13.80788982,177.56,177.51,13.80788982]
[1753968852052,39.80788982,177.56,177.5,54.86788982]
[1753968852252,45.4398092,177.56,177.51,13.80788982]
[1753968852570,26.0,177.53,177.49,13.80788982]
[1753968853071,26.0,177.55,177.52,13.80788982]
[1753968853270,5.63098255,177.59,177.54,13.80788982]
[1753968853481,0.03,177.57,177.51,41.06]
[1753968853780,0.03,177.57,177.53,13.80788982]
[1753968854176,5.63189907,177.56,177.42,28.18073456]
[1753968854374,26.0,177.53,177.49,13.80788982]
[1753968854690,13.80788982,177.52,177.47,13.80788982]
[1753968854864,13.80788982,177.49,177.44,13.80788982]
[1753968855272,13.80788982,177.5,177.45,13.80788982]
[1753968855849,26.0,177.52,177.43,19.44391529]
[1753968856067,13.80788982,177.48,177.43,19.44391529]
[1753968856450,13.80788982,177.48,177.43,13.80788982]
[1753968856790,26.0,177.47,177.43,13.80788982]
[1753968857277,26.0,177.47,177.4,41.04]
[1753968857278,26.0,177.47,177.41,5.63659941]
[1753968857464,26.0,177.47,177.43,13.80788982]
[1753968859263,41.04,177.5,177.46,13.80788982]
[1753968859264,67.04,177.5,177.46,13.80788982]
[1753968859466,80.84788982,177.5,177.45,13.80788982]
[1753968859667,80.84788982,177.5,177.41,5.63659941]
[1753968859864,13.80788982,177.49,177.44,13.80788982]
[1753968860083,80.84788982,177.5,177.45,13.80788982]
[1753968860269,45.44172919,177.5,177.45,13.80788982]
[1753968860471,31.63383937,177.5,177.46,13.80788982]
[1753968860696,26.0,177.5,177.46,13.80788982]
[1753968860869,26.0,177.5,177.47,13.80788982]
[1753968861075,26.0,177.5,177.46,13.80788982]
[1753968861582,26.0,177.5,177.47,13.80788982]
[1753968861874,178.93382804,177.5,177.46,13.80788982]
[1753968862079,13.80788982,177.49,177.41,19.72831294]
[1753968862291,13.80788982,177.49,177.44,19.44358918]
[1753968862470,19.44209766,177.49,177.44,13.80788982]
[1753968862784,13.80788982,177.49,177.44,13.80788982]
[1753968862988,19.44206354,177.49,177.44,13.80788982]
[1753968863489,13.80788982,177.49,177.44,13.80788982]
[1753968863889,147.3,177.5,177.47,13.80788982]
[1753968864269,31.0418029,177.57,177.49,13.80788982]
[1753968864270,13.80788982,177.56,177.49,13.80788982]
[1753968864584,26.0,177.52,177.51,13.80788982]
[1753968864887,26.0,177.52,177.5,13.80788982]
[1753968865084,40.96,177.55,177.51,13.80788982]
[1753968865259,40.96,177.55,177.52,13.80788982]
[1753968865965,0.03,177.57,177.53,13.80788982]
[1753968866387,5.66163741,177.57,177.53,13.80788982]
[1753968866693,0.03,177.57,177.53,13.80788982]
[1753968866876,26.0,177.56,177.53,13.80788982]
[1753968867187,13.83788982,177.57,177.52,13.80788982]
[1753968867391,39.83788982,177.57,177.52,13.80788982]
[1753968868091,26.03,177.57,177.53,13.80788982]
[1753968868301,5.63221627,177.55,177.51,13.80788982]
[1753968868502,19.44010609,177.55,177.5,13.80788982]
[1753968868791,60.34010609,177.55,177.47,7.18812838]
[1753968868995,60.34010609,177.55,177.46,19.44286762]
[1753968868996,13.80788982,177.51,177.46,19.44286762]
[1753968869224,26.0,177.52,177.45,60.40318729]
[1753968869376,26.0,177.52,177.46,13.80788982]
[1753968869377,13.80788982,177.51,177.46,13.80788982]
[1753968870079,13.80788982,177.51,177.43,5.63602547]
[1753968870271,54.70788982,177.51,177.46,13.80788982]
[1753968870594,40.9,177.51,177.47,13.80788982]
[1753968870978,60.34140368,177.51,177.43,5.63602547]
[1753968871183,46.53351386,177.51,177.46,13.80788982]
[1753968871391,60.34140368,177.51,177.46,13.80788982]
[1753968871579,13.80788982,177.49,177.42,13.29336815]
[1753968871786,13.80788982,177.49,177.44,13.80788982]
[1753968872095,39.80788982,177.48,177.43,13.80788982]
[1753968872271,45.44241168,177.48,177.43,13.80788982]
[1753968872474,39.80788982,177.48,177.44,13.80788982]
[1753968872898,26.0,177.48,177.44,9.79330612]
[1753968873104,82.30680606,177.51,177.46,9.79330612]
[1753968873416,9.79330612,177.5,177.45,9.79330612]
[1753968873997,86.59721353,177.51,177.42,13.29336815]
[1753968874201,9.79330612,177.48,177.43,15.42901578]
[1753968874404,15.4274783,177.49,177.44,9.79330612]
[1753968874799,9.79330612,177.48,177.42,1.5903]
[1753968874998,9.79330612,177.47,177.42,1.5903]
[1753968875313,9.79330612,177.45,177.4,40.96]
[1753968875491,9.79330612,177.45,177.4,50.75330612]
[1753968875691,9.79330612,177.45,177.4,9.85330612]
[1753968876323,9.79330612,177.43,177.4,0.06]
[1753968876828,9.79330612,177.44,177.4,0.06]
[1753968877028,26.0,177.42,177.4,0.06]
[1753968877591,9.79330612,177.41,177.4,0.06]
[1753968878021,35.79330612,177.42,177.4,0.06]
[1753968878192,26.0,177.41,177.4,0.06]
[1753968878392,31.63666084,177.41,177.4,0.06]
[1753968878592,41.42996696,177.41,177.4,0.06]
[1753968879193,58.21465093,177.41,177.4,0.06]
[1753968879497,70.06974579,177.41,177.4,0.06]
[1753968880101,61.89390866,177.41,177.4,0.06]
[1753968880311,52.10060254,177.41,177.4,0.06]
[1753968880616,72.57666084,177.41,177.4,0.06]
[1753968880804,66.94,177.41,177.4,0.06]
[1753968880990,82.36996696,177.41,177.4,0.06]
[1753968881194,76.73330612,177.41,177.4,0.06]
[1753968881493,66.94,177.41,177.4,0.06]
[1753968882119,82.36996696,177.41,177.4,0.06]
[1753968882705,99.15465093,177.41,177.4,0.06]
[1753968882899,170.23068397,177.4,177.38,0.06]
[1753968883104,28.62251597,177.39,177.38,0.06]
[1753968883311,21.63113812,177.39,177.38,0.06]
[1753968883512,50.83330612,177.39,177.38,0.06]
[1753968883709,54.50364887,177.39,177.38,0.06]
[1753968883922,50.83330612,177.39,177.38,0.06]
[1753968884253,67.04,177.39,177.38,0.06]
[1753968884393,56.47060247,177.39,177.38,0.06]
[1753968884597,68.28904493,177.39,177.38,0.06]
[1753968884816,26.0,177.36,177.34,0.06]
[1753968884998,50.85330612,177.35,177.34,0.06]
[1753968885419,41.06,177.35,177.34,0.06]
[1753968885596,50.85330612,177.35,177.34,0.06]
[1753968886421,41.06,177.35,177.34,0.06]
[1753968886601,56.49187392,177.35,177.34,0.06]
[1753968886803,14.09107188,177.42,177.34,0.06]
[1753968887034,9.79330612,177.36,177.34,0.06]
[1753968887240,50.83330612,177.36,177.34,0.06]
[1753968887523,9.79330612,177.35,177.34,0.06]
[1753968888540,5.6385678,177.35,177.34,0.06]
[1753968888840,15.43187392,177.35,177.34,0.06]
[1753968889135,19.09497366,177.35,177.34,0.06]
[1753968889337,23.16742531,177.35,177.34,0.06]
[1753968890033,61.83292091,177.35,177.33,0.06]
[1753968890231,61.83292091,177.35,177.28,0.06]
[1753968890232,26.0,177.31,177.28,0.06]
[1753968890422,15.43378217,177.29,177.28,0.06]
[1753968890622,46.66047605,177.29,177.28,0.06]
[1753968891023,85.03213252,177.29,177.28,0.06]
[1753968891222,26.0,177.27,177.26,0.06]
[1753968891424,76.87330612,177.27,177.26,0.06]
[1753968891953,84.5914178,177.27,177.26,0.06]
[1753968892149,74.79811168,177.27,177.26,0.06]
[1753968892338,33.71811168,177.27,177.26,0.06]
[1753968892645,82.53441854,177.27,177.26,0.06]
[1753968893237,16.78468397,177.26,177.25,0.06]
[1753968893427,17.50205279,177.26,177.25,0.06]
[1753968893631,50.87330612,177.26,177.25,0.06]
[1753968893836,54.92757621,177.26,177.25,0.06]
[1753968894347,75.35735055,177.26,177.25,0.06]
[1753968894547,16.78468397,177.25,177.24,0.06]
[1753968894838,16.78468397,177.25,177.22,0.06]
[1753968894839,26.0,177.23,177.22,0.06]
[1753968895040,80.94213816,177.23,177.22,0.06]
[1753968895547,16.78468397,177.22,177.17,0.2]
[1753968895841,60.70661224,177.21,177.17,0.2]
[1753968896428,87.17569642,177.21,177.17,0.2]
[1753968896630,90.81254475,177.21,177.17,0.2]
[1753968897025,50.80440021,177.21,177.17,0.2]
[1753968897228,56.55632852,177.21,177.17,0.2]
[1753968897927,26.0,177.18,177.17,0.2]
[1753968898130,16.78468397,177.17,177.02,15.69966378]
[1753968898349,26.0,177.13,177.06,9.79330612]
[1753968898538,41.2,177.12,177.07,9.79330612]
[1753968898749,41.2,177.12,177.06,5.64756472]
[1753968899039,9.79330612,177.1,177.03,16.78468397]
[1753968899236,9.79330612,177.09,177.03,22.43341884]
[1753968899438,41.2,177.1,177.03,22.43341884]
[1753968899636,50.99330612,177.1,177.03,22.43341884]
[1753968899834,9.79330612,177.09,177.03,22.43341884]
[1753968900365,9.79330612,177.07,177.02,17.01966966]
[1753968900528,50.99330612,177.06,177.02,1.5773]
[1753968900730,41.2,177.06,177.02,11.37060612]
[1753968900948,41.2,177.08,177.04,16.78468397]
[1753968901144,41.22,177.1,177.07,9.79330612]
[1753968901345,41.22,177.1,177.04,16.78468397]
[1753968901669,41.22,177.1,177.07,9.79330612]
[1753968902042,41.22,177.1,177.04,16.78468397]
[1753968902237,51.01330612,177.1,177.02,7.22628786]
[1753968902441,41.22,177.1,177.04,5.64844103]
[1753968902652,9.79330612,177.14,177.09,9.79330612]
[1753968902936,41.34,177.13,177.09,9.79330612]
[1753968903152,41.34,177.13,177.11,9.79330612]
[1753968903361,41.34,177.15,177.11,9.79330612]
[1753968903567,51.13330612,177.15,177.1,9.79330612]
[1753968903765,51.13330612,177.15,177.03,5.64875611]
[1753968903766,9.79330612,177.11,177.03,5.64875611]
[1753968903964,9.79330612,177.1,177.05,9.79330612]
[1753968904261,9.79330612,177.08,177.04,9.79330612]
[1753968904466,5.64652738,177.1,177.04,9.79330612]
[1753968904669,9.79330612,177.08,177.04,9.79330612]
[1753968904866,13.88295897,177.06,177.03,0.06]
[1753968905076,13.88295897,177.05,177.03,0.06]
[1753968905366,13.88295897,177.04,177.03,0.06]
[1753968905857,41.32,177.05,177.03,0.06]
[1753968906167,13.88295897,177.04,177.03,0.06]
[1753968906474,19.5314,177.04,177.03,0.06]
[1753968906632,13.88295897,177.04,177.03,0.06]
[1753968906963,86.8314,177.04,177.03,0.06]
[1753968907162,60.8314,177.04,177.03,0.06]
[1753968907541,41.3,177.04,177.03,0.06]
[1753968907738,67.32,177.04,177.03,0.06]
[1753968907962,81.20295897,177.04,177.03,0.06]
[1753968908540,26.0,176.99,176.98,140.0]
[1753968908758,81.20295897,176.99,176.98,140.0]
[1753968909467,39.88295897,176.99,176.98,140.0]
[1753968909842,55.18295897,176.99,176.98,140.0]
[1753968910049,5.647803,177.06,176.98,140.0]
[1753968910364,6.4773,177.14,177.01,1.5693]
[1753968910566,13.88295897,177.09,177.02,5.64880093]
[1753968910767,41.34,177.09,177.04,13.88295897]
[1753968910972,2.93633654,177.13,177.08,13.88295897]
[1753968911187,2.93633654,177.13,177.12,13.88295897]
[1753968911487,41.38,177.16,177.12,13.88295897]
[1753968911646,2.9363838,177.22,177.15,13.88295897]
[1753968911961,41.4,177.23,177.2,13.88295897]
[1753968912180,41.42,177.25,177.22,13.88295897]
[1753968912465,41.42,177.25,177.23,13.88295897]
[1753968912679,41.42,177.25,177.17,5.64429643]
[1753968912847,13.88295897,177.23,177.18,13.88295897]
[1753968913040,13.88295897,177.24,177.19,13.88295897]
[1753968913255,47.06187926,177.25,177.19,13.88295897]
[1753968913452,47.06187926,177.25,177.18,13.88295897]
[1753968913644,47.06187926,177.25,177.16,16.78468397]
[1753968913645,13.88295897,177.22,177.16,16.78468397]
[1753968913981,41.42,177.22,177.15,1.5163]
[1753968914147,41.42,177.22,177.19,13.88295897]
[1753968914466,19.52483823,177.25,177.19,13.88295897]
[1753968914677,5.64187926,177.25,177.19,13.88295897]
[1753968914968,13.88295897,177.24,177.16,16.78468397]
[1753968915174,19.52483823,177.25,177.2,13.88295897]
[1753968915471,5.64187926,177.25,177.19,13.88295897]
[1753968915674,19.52483823,177.25,177.2,13.88295897]
[1753968915881,41.44,177.26,177.23,13.88295897]
[1753968916060,14.0995199,177.32,177.25,13.88295897]
[1753968916249,59.31623829,177.3,177.25,13.88295897]
[1753968916449,4.01327932,177.29,177.21,16.78468397]
[1753968916656,41.42,177.3,177.26,13.88295897]
[1753968916951,67.42,177.3,177.27,13.88295897]
[1753968917143,41.42,177.3,177.27,13.88295897]
[1753968917348,41.42,177.3,177.22,16.78468397]
[1753968917546,41.42,177.34,177.29,13.88295897]
[1753968917786,4.02027248,177.33,177.23,16.78468397]
[1753968917956,17.90323145,177.33,177.29,13.88295897]
[1753968918171,4.02027248,177.32,177.29,13.88295897]
[1753968918382,13.88295897,177.32,177.23,16.78468397]
[1753968918575,26.0,177.34,177.23,16.78468397]
[1753968918576,5.63920374,177.33,177.27,13.88295897]
[1753968918783,4.02359943,177.32,177.28,13.88295897]
[1753968919295,4.02359943,177.32,177.29,13.88295897]
[1753968919665,4.02359943,177.32,177.23,16.78468397]
[1753968919896,4.02359943,177.32,177.31,13.88295897]
[1753968920192,5.63891718,177.34,177.31,13.88295897]
[1753968920393,4.03014559,177.33,177.25,16.78468397]
[1753968920590,4.03014559,177.33,177.31,13.88295897]
[1753968920773,9.66948062,177.33,177.31,13.88295897]
[1753968920971,9.66948062,177.33,177.25,42.78468397]
[1753968920972,5.63933503,177.33,177.3,13.88295897]
[1753968921213,5.63933503,177.33,177.25,42.78468397]
[1753968921496,5.63933503,177.33,177.18,10.0]
[1753968921497,13.88295897,177.28,177.24,16.78468397]
[1753968921672,13.88295897,177.29,177.24,30.66764294]
[1753968921876,13.88295897,177.29,177.24,16.78468397]
[1753968922190,13.88295897,177.29,177.25,13.88295897]
[1753968922504,4.03517785,177.28,177.24,13.88295897]
[1753968922794,5.64111242,177.27,177.24,13.88295897]
[1753968922996,5.64083734,177.28,177.25,13.88295897]
[1753968923189,5.64083734,177.28,177.2,16.78468397]
[1753968923190,4.03679472,177.27,177.2,16.78468397]
[1753968923397,4.03679472,177.27,177.19,67.36]
[1753968923398,13.88295897,177.23,177.18,13.88295897]
[1753968923774,41.34,177.26,177.18,13.88295897]
[1753968923978,7.66519157,177.25,177.18,13.88295897]
[1753968924277,13.88295897,177.23,177.17,16.78468397]
[1753968924479,4.0344484,177.24,177.17,16.78468397]
[1753968924684,5.64285756,177.22,177.19,13.88295897]
[1753968924988,5.64115422,177.27,177.22,16.78468397]
[1753968925289,4.03682066,177.26,177.2,42.78468397]
[1753968925503,4.03682066,177.26,177.19,16.78468397]
[1753968925677,13.88295897,177.22,177.16,16.78468397]
[1753968925876,13.88295897,177.21,177.16,30.66764294]
[1753968926100,13.88295897,177.22,177.18,16.78468397]
[1753968926597,61.12397426,177.27,177.15,1.5163]
[1753968926598,13.88295897,177.2,177.15,1.5163]
[1753968926810,13.88295897,177.18,177.15,1.5163]
[1753968927101,13.88295897,177.24,177.13,6.4146]
[1753968927102,13.88295897,177.16,177.13,6.4146]
[1753968927287,13.88295897,177.19,177.16,0.06]
[1753968927601,17.92400501,177.18,177.16,0.06]
[1753968927802,13.88295897,177.19,177.16,0.06]
[1753968928005,4.63885279,177.26,177.16,0.06]
[1753968928214,26.0,177.23,177.17,13.88295897]
[1753968928416,13.88295897,177.21,177.17,13.88295897]
[1753968928616,4.04243834,177.2,177.16,13.94295897]
[1753968928909,19.52641832,177.2,177.16,13.94295897]
[1753968929206,5.64345935,177.2,177.16,16.84468397]
[1753968929405,55.54479371,177.25,177.19,13.88295897]
[1753968929406,19.52503856,177.24,177.19,13.88295897]
[1753968929612,4.04403182,177.23,177.2,13.88295897]
[1753968929809,81.32295897,177.25,177.16,22.48928696]
[1753968929810,5.64174894,177.25,177.16,16.84468397]
[1753968930112,4.04424636,177.24,177.21,13.88295897]